bitfinex-derivatives/quotes_BTCF0:USTF0_20250119
["timestamp","ask_amount","ask_price","bid_price","bid_amount"]
[1737319871193,0.124414,106010.0,106000.0,0.03738965]
[1737319872485,0.485214,106010.0,105990.0,0.17864293]
[1737319872783,0.558114,106010.0,105990.0,0.17864293]
[1737319873588,0.558114,106010.0,106000.0,0.05112093]
[1737319874497,0.558114,106010.0,105990.0,0.09834293]
[1737319874685,0.558114,106010.0,106000.0,0.05112093]
[1737319875293,0.5109,106010.0,105990.0,0.05112093]
[1737319875493,0.408019,106000.0,105990.0,0.05112093]
[1737319876195,0.047223,105990.0,105980.0,0.05112093]
[1737319876504,0.047223,105990.0,105970.0,0.408031]
[1737319876505,0.487423,105990.0,105970.0,0.45915193]
[1737319876699,0.047232,105970.0,105960.0,0.197636]
[1737319876895,0.047232,105970.0,105960.0,0.24875693]
[1737319877195,0.483328,105980.0,105960.0,0.29987786]
[1737319877397,0.483328,105980.0,105970.0,0.05112093]
[1737319878092,0.122528,105980.0,105970.0,0.05112093]
[1737319878293,0.122528,105980.0,105970.0,0.09835293]
[1737319878590,0.0753,105980.0,105970.0,0.047232]
[1737319878797,0.0753,105980.0,105970.0,0.09835293]
[1737319881103,0.047232,105970.0,105950.0,0.41829758]
[1737319881403,0.3608,105970.0,105960.0,0.09835793]
[1737319881804,0.483328,105980.0,105960.0,0.45915793]
[1737319882102,0.483328,105980.0,105970.0,0.05112093]
[1737319883205,0.483328,105980.0,105960.0,0.45915793]
[1737319883895,0.561128,105980.0,105960.0,0.45915793]
[1737319884097,0.561128,105980.0,105960.0,0.09835793]
[1737319884298,0.561128,105980.0,105960.0,0.45915793]
[1737319884707,0.0753,105980.0,105970.0,0.05112093]
[1737319884892,0.0753,105980.0,105970.0,0.09835293]
[1737319885092,0.0753,105980.0,105970.0,0.45915293]
[1737319885900,0.3608,106010.0,105980.0,0.047228]
[1737319886103,0.3608,106010.0,106000.0,0.45913993]
[1737319886104,0.1491,106010.0,106000.0,0.45913993]
[1737319887701,0.1491,106010.0,106000.0,0.408019]
[1737319887909,0.196314,106010.0,106000.0,0.047219]
[1737319888202,0.1491,106010.0,106000.0,0.45913993]
[1737319888504,0.4402,106030.0,106010.0,0.047213]
[1737319888505,0.487407,106030.0,106010.0,0.047213]
[1737319888701,0.644707,106030.0,106010.0,0.45913393]
[1737319888908,0.5181,106030.0,106020.0,0.09833093]
[1737319889109,0.5181,106030.0,106020.0,0.45913093]
[1737319889110,0.1573,106030.0,106020.0,0.45913093]
[1737319889805,0.3608,106040.0,106020.0,0.41192093]
[1737319890005,0.3608,106040.0,106030.0,0.09832593]
[1737319890598,0.2308,106050.0,106040.0,0.047201]
[1737319890805,0.2308,106050.0,106040.0,0.70332193]
[1737319891500,0.04775,106060.0,106050.0,0.047197]
[1737319891703,0.04775,106060.0,106050.0,0.70331793]
[1737319893599,0.04775,106060.0,106050.0,0.34251793]
[1737319893997,0.50686293,106060.0,106050.0,0.2442]
[1737319894397,0.455742,106060.0,106050.0,0.2442]
[1737319894819,0.455742,106060.0,106050.0,0.29532093]
[1737319895408,0.40855,106060.0,106050.0,0.34251793]
[1737319895594,0.04775,106060.0,106050.0,0.34251793]
[1737319896506,0.04775,106060.0,106050.0,0.39363886]
[1737319896899,0.04775,106060.0,106050.0,0.34251793]
[1737319897107,0.04775,106060.0,106050.0,0.56261793]
[1737319897302,0.04775,106060.0,106050.0,0.61373886]
[1737319897510,0.04775,106060.0,106050.0,0.56261793]
[1737319900506,0.455742,106060.0,106050.0,0.4643]
[1737319901010,0.58446293,106060.0,106050.0,0.4643]
[1737319901212,0.533342,106060.0,106050.0,0.4643]
[1737319901415,0.533342,106060.0,106040.0,0.09832093]
[1737319901711,0.1542,106050.0,106040.0,0.09832093]
[1737319908019,0.16311548,106050.0,106040.0,0.09832093]
[1737319913221,0.21031248,106050.0,106040.0,0.09832093]
[1737319915718,0.047201,106040.0,106020.0,1.02374]
[1737319915918,0.408001,106040.0,106020.0,0.61442993]
[1737319916121,0.408001,106040.0,106030.0,0.05112093]
[1737319916712,0.3608,106040.0,106030.0,0.05112093]
[1737319916916,0.0749,106050.0,106040.0,0.047201]
[1737319917116,0.79475014,106060.0,106050.0,0.047197]
[1737319917117,0.35635014,106060.0,106050.0,0.047197]
[1737319917323,0.35635014,106060.0,106050.0,0.92341793]
[1737319917523,0.36513185,106060.0,106050.0,0.99721793]
[1737319918020,0.05653171,106060.0,106050.0,0.99721793]
[1737319918619,0.05653171,106060.0,106050.0,0.95002093]
[1737319918820,0.05653171,106060.0,106050.0,0.99721793]
[1737319919025,0.10372371,106060.0,106050.0,0.92341793]
[1737319919423,0.46452371,106060.0,106050.0,0.511497]
[1737319920125,0.46452371,106060.0,106050.0,0.4643]
[1737319920529,0.60470129,106060.0,106050.0,0.4643]
[1737319921037,0.60470129,106060.0,106050.0,0.511497]
[1737319921232,0.60470129,106060.0,106050.0,0.4643]
[1737319922429,0.047197,106050.0,106040.0,0.047199]
[1737319922629,0.487997,106050.0,106040.0,0.047199]
[1737319922827,0.487997,106050.0,106040.0,0.09831993]
[1737319922828,0.08,106050.0,106040.0,0.09831993]
[1737319923016,0.55750929,106060.0,106050.0,0.047197]
[1737319923223,0.19670929,106060.0,106050.0,0.14943886]
[1737319923424,0.19670929,106060.0,106050.0,0.09831793]
[1737319926328,0.24390129,106060.0,106050.0,0.09831793]
[1737319927635,0.18792758,106060.0,106050.0,0.09831793]
[1737319927838,0.18792758,106060.0,106050.0,0.51023886]
[1737319928029,0.18792758,106060.0,106050.0,0.66133886]
[1737319929335,0.04775,106060.0,106050.0,0.66133886]
[1737319930338,0.16043052,106060.0,106050.0,0.66133886]
[1737319931424,0.20762252,106060.0,106050.0,0.45911793]
[1737319931629,0.28822252,106060.0,106050.0,0.09831793]
[1737319931824,0.36862252,106060.0,106050.0,0.09831793]
[1737319932033,0.16043052,106060.0,106050.0,0.51023886]
[1737319932530,0.3006081,106060.0,106050.0,0.51023886]
[1737319933431,0.04775,106060.0,106050.0,0.51023886]
[1737319937236,0.11268052,106080.0,106070.0,0.047188]
[1737319937438,0.11268052,106080.0,106070.0,0.81990893]
[1737319937636,0.14017758,106090.0,106070.0,0.87102986]
[1737319937941,0.14017758,106090.0,106080.0,0.51022486]
[1737319938135,0.4769898,106100.0,106080.0,0.46304186]
[1737319938336,0.4769898,106100.0,106090.0,0.09829993]
[1737319939039,0.8377898,106100.0,106090.0,0.09829993]
[1737319939341,0.8377898,106100.0,106080.0,0.09830293]
[1737319939342,0.047179,106090.0,106080.0,0.09830293]
[1737319940137,0.407979,106090.0,106080.0,0.09830293]
[1737319941236,0.125979,106090.0,106080.0,0.09830293]
[1737319942233,0.486779,106090.0,106080.0,0.09830293]
[1737319943742,0.0788,106090.0,106080.0,0.09830293]
[1737319944444,0.4396,106090.0,106080.0,0.09830293]
[1737319944648,0.0788,106090.0,106080.0,0.09830293]
[1737319944942,0.4396,106090.0,106080.0,0.09830293]
[1737319945147,0.0788,106090.0,106080.0,0.09830293]
[1737319945541,0.4396,106090.0,106080.0,0.09830293]
[1737319945943,0.486779,106090.0,106080.0,0.047182]
[1737319948045,0.486779,106090.0,106080.0,0.09830293]
[1737319949846,0.177,106100.0,106090.0,0.047179]
[1737319950050,0.177,106100.0,106090.0,0.45909993]
[1737319951749,0.1,106100.0,106090.0,0.45909993]
[1737319951944,0.1,106100.0,106090.0,0.66582086]
[1737319952143,0.1,106100.0,106090.0,0.68939993]
[1737319952949,0.1,106100.0,106090.0,0.65184762]
[1737319953145,0.1,106100.0,106090.0,0.70296846]
[1737319953543,0.1,106100.0,106090.0,0.70301201]
[1737319953742,0.1,106100.0,106090.0,0.71228215]
[1737319955039,0.1,106100.0,106090.0,0.69871362]
[1737319955353,0.18733458,106140.0,106130.0,0.047161]
[1737319955554,0.33793458,106140.0,106130.0,0.10595107]
[1737319955848,0.45920014,106140.0,106130.0,0.10595107]
[1737319956353,0.45920014,106140.0,106130.0,0.1118492]
[1737319956851,0.46829849,106140.0,106130.0,0.1118492]
[1737319957055,0.24411456,106140.0,106130.0,0.11184742]
[1737319958153,0.65207056,106140.0,106130.0,0.10594938]
[1737319959154,0.65207056,106140.0,106130.0,0.10594982]
[1737319960247,0.65207056,106140.0,106130.0,0.00766789]
[1737319960248,0.70319149,106140.0,106130.0,0.00766789]
[1737319960446,0.70319149,106140.0,106130.0,0.00766816]
[1737319960642,0.70319149,106140.0,106130.0,0.00294919]
[1737319960847,0.70319149,106140.0,106130.0,0.00766831]
[1737319961357,0.047165,106120.0,106110.0,0.047169]
[1737319961663,0.768765,106120.0,106110.0,0.01061861]
[1737319961857,0.768765,106120.0,106110.0,0.00471938]
[1737319962454,0.768765,106120.0,106110.0,0.05584031]
[1737319962651,0.407962,106130.0,106110.0,0.15413124]
[1737319962851,0.407962,106130.0,106120.0,0.05112093]
[1737319963053,0.54813958,106130.0,106120.0,0.05584031]
[1737319963257,0.54813958,106130.0,106120.0,0.10300531]
[1737319963553,0.14017758,106130.0,106120.0,0.10890436]
[1737319964154,0.08432061,106130.0,106120.0,0.10890436]
[1737319965053,0.08432061,106130.0,106120.0,0.10890366]
[1737319965456,0.047161,106130.0,106120.0,0.10890366]
[1737319965658,0.047161,106130.0,106120.0,0.10890371]
[1737319965958,0.407961,106130.0,106120.0,0.10890371]
[1737319966260,0.407961,106130.0,106120.0,0.06173871]
[1737319967256,0.407961,106130.0,106120.0,0.0617391]
[1737319967460,0.49228161,106130.0,106120.0,0.0617391]
[1737319968858,0.407961,106130.0,106120.0,0.0617391]
[1737319971159,0.407961,106130.0,106120.0,0.06173898]
[1737319972069,0.407961,106130.0,106120.0,0.01061805]
[1737319972367,0.45908193,106130.0,106120.0,0.00471913]
[1737319972553,0.047168,106120.0,106110.0,0.05112093]
[1737319972860,0.487668,106120.0,106110.0,0.05702042]
[1737319973452,0.487668,106120.0,106110.0,0.05997013]
[1737319974857,0.487668,106120.0,106110.0,0.05407066]
[1737319975061,0.487668,106120.0,106110.0,0.0540708]
[1737319975663,0.487668,106120.0,106110.0,0.00884961]
[1737319975870,0.487668,106120.0,106110.0,0.05997054]
[1737319976161,0.57198861,106120.0,106110.0,0.05997054]
[1737319976362,0.57198861,106120.0,106110.0,0.00884961]
[1737319978565,0.487668,106120.0,106110.0,0.00884961]
[1737319978956,0.487668,106120.0,106100.0,0.01289538]
[1737319978957,0.04717,106110.0,106100.0,0.01289538]
[1737319979157,0.48667,106110.0,106100.0,0.01289538]
[1737319979771,0.57120172,106110.0,106100.0,0.01289538]
[1737319980256,0.16323172,106110.0,106100.0,0.01289538]
[1737319980565,0.16323172,106110.0,106100.0,0.06006938]
[1737319980566,0.08453172,106110.0,106100.0,0.06006938]
[1737319980753,0.08453172,106110.0,106100.0,0.42086938]
[1737319982258,0.08453172,106110.0,106100.0,0.51021586]
[1737319982659,0.08453172,106110.0,106100.0,0.51493511]
[1737319983670,0.13169772,106120.0,106100.0,0.46776111]
[1737319983967,0.13169772,106120.0,106110.0,0.67475537]
[1737319984162,0.13169772,106120.0,106110.0,0.76527462]
[1737319984360,0.08453172,106120.0,106110.0,0.76527452]
[1737319984555,0.18733958,106130.0,106110.0,0.76527452]
[1737319984754,0.18733958,106130.0,106120.0,0.45908593]
[1737319984958,0.18733958,106130.0,106120.0,0.46384859]
[1737319986063,0.047162,106130.0,106120.0,0.46384859]
[1737319986263,0.05605822,106140.0,106130.0,0.047161]
[1737319986572,0.05605822,106140.0,106130.0,0.46380107]
[1737319986965,0.05605822,106140.0,106130.0,0.46974272]
[1737319988272,0.05605822,106140.0,106130.0,0.46974168]
[1737319988461,0.047158,106140.0,106130.0,0.10894168]
[1737319988658,0.493053,106150.0,106140.0,0.047157]
[1737319988868,0.493053,106150.0,106140.0,0.1088942]
[1737319990066,0.4459,106150.0,106140.0,0.5731942]
[1737319990376,0.4459,106150.0,106140.0,0.93403692]
[1737319990377,0.0851,106150.0,106140.0,0.93403692]
[1737319990868,0.09408868,106150.0,106140.0,0.93403692]
[1737319991066,0.09408868,106150.0,106140.0,0.57618556]
[1737319992375,0.09408868,106150.0,106140.0,0.57618492]
[1737319994172,0.09408868,106150.0,106140.0,0.11188495]
[1737319994674,0.09408868,106150.0,106140.0,0.06472795]
[1737319994878,0.0851,106150.0,106140.0,0.06472795]
[1737319995179,0.4459,106150.0,106140.0,0.06472795]
[1737319995375,0.0851,106150.0,106140.0,0.06472795]
[1737319996274,0.0851,106150.0,106140.0,0.06472775]
[1737319997380,0.132252,106150.0,106140.0,0.06472775]
[1737320000178,0.493052,106150.0,106140.0,0.06474127]
[1737320000680,0.493052,106150.0,106140.0,0.11189827]
[1737320001073,0.493052,106150.0,106140.0,0.01356418]
[1737320002172,0.493052,106150.0,106140.0,0.01356606]
[1737320003589,0.54417293,106150.0,106140.0,0.01356606]
[1737320003875,0.54417293,106150.0,106120.0,0.04722101]
[1737320004081,0.407961,106130.0,106120.0,0.05306372]
[1737320004280,0.407961,106130.0,106120.0,0.10418465]
[1737320004590,0.494461,106130.0,106120.0,0.10418465]
[1737320005582,0.494461,106130.0,106120.0,0.10418499]
[1737320007080,0.577261,106130.0,106120.0,0.10418499]
[1737320008183,0.577261,106130.0,106120.0,0.05306406]
[1737320009583,0.577261,106130.0,106120.0,0.10418499]
[1737320009781,0.577261,106130.0,106120.0,0.32986291]
[1737320010281,0.577261,106130.0,106120.0,0.23157698]
[1737320010482,0.577261,106130.0,106110.0,0.66761577]
[1737320010483,0.62838193,106130.0,106110.0,0.62039057]
[1737320010678,0.54438593,106120.0,106110.0,0.62628987]
[1737320011093,0.493265,106120.0,106110.0,0.34419247]
[1737320012579,0.493265,106120.0,106110.0,0.33829317]
[1737320012777,0.04717,106110.0,106100.0,0.38049255]
[1737320012985,0.49467,106110.0,106100.0,0.38043617]
[1737320013174,0.13387,106110.0,106100.0,0.38043617]
[1737320013578,0.0867,106110.0,106100.0,0.38043617]
[1737320013985,0.0867,106110.0,106100.0,0.38515598]
[1737320014283,0.4461,106120.0,106100.0,0.38521241]
[1737320014486,0.5600444,106130.0,106120.0,0.047165]
[1737320014779,0.4564394,106130.0,106120.0,0.10306226]
[1737320014981,0.0956394,106130.0,106120.0,0.10300574]
[1737320015178,0.4564394,106130.0,106120.0,0.10300574]
[1737320015477,0.4564394,106130.0,106120.0,0.10306201]
[1737320015683,0.0956394,106130.0,106120.0,0.10300574]
[1737320015977,0.0956394,106130.0,106120.0,0.10595513]
[1737320016170,0.0867,106130.0,106120.0,0.10595513]
[1737320016375,0.0867,106130.0,106120.0,0.10601146]
[1737320016575,0.0867,106130.0,106120.0,0.10595513]
[1737320017084,0.0867,106130.0,106120.0,0.10601146]
[1737320017285,0.50484061,106140.0,106130.0,0.047161]
[1737320017584,0.45768361,106140.0,106130.0,0.10600746]
[1737320018086,0.0879,106140.0,106130.0,0.10595113]
[1737320018387,0.4487,106140.0,106130.0,0.10595113]
[1737320018584,0.4487,106140.0,106130.0,0.11184927]
[1737320019687,0.49936098,106150.0,106130.0,0.17194024]
[1737320019885,0.49936098,106150.0,106140.0,0.23816538]
[1737320020084,0.49936098,106150.0,106140.0,0.25173087]
[1737320020286,0.37000698,106150.0,106140.0,0.25173087]
[1737320020873,0.37000698,106150.0,106140.0,0.20060994]
[1737320021987,0.37000698,106150.0,106140.0,0.20060929]
[1737320023386,0.41715898,106150.0,106140.0,0.20060929]
[1737320023583,0.41715898,106150.0,106140.0,0.01363136]
[1737320023884,0.49785898,106150.0,106140.0,0.01363136]
[1737320024086,0.49785898,106150.0,106140.0,0.06475229]
[1737320024476,0.49785898,106150.0,106140.0,0.11190929]
[1737320024684,0.49785898,106150.0,106140.0,0.11184257]
[1737320024979,0.49785898,106150.0,106140.0,0.11190929]
[1737320025179,0.45070698,106150.0,106140.0,0.16303022]
[1737320027786,0.45070698,106150.0,106140.0,0.16302999]
[1737320028282,0.4415,106150.0,106140.0,0.16302999]
[1737320028487,0.4422,106160.0,106150.0,0.047152]
[1737320028801,0.4422,106160.0,106150.0,0.19380398]
[1737320029887,0.4422,106160.0,106150.0,0.19380327]
[1737320031290,0.45141343,106160.0,106150.0,0.19380327]
[1737320031599,0.45141343,106160.0,106150.0,0.19373672]
[1737320031787,0.45141343,106160.0,106150.0,0.19373704]
[1737320031988,0.45141343,106160.0,106150.0,0.19380347]
[1737320032398,0.09061343,106160.0,106150.0,0.19380347]
[1737320032984,0.33369998,106170.0,106160.0,0.047148]
[1737320033188,0.33369998,106170.0,106160.0,0.11189953]
[1737320033690,0.20210725,106170.0,106160.0,0.11189953]
[1737320034599,0.1406111,106190.0,106160.0,0.57096846]
[1737320034790,0.1406111,106190.0,106180.0,0.4591264]
[1737320035103,0.26873332,106200.0,106190.0,0.047134]
[1737320035398,0.26873332,106200.0,106190.0,0.32120621]
[1737320035601,0.26873332,106200.0,106190.0,0.75970621]
[1737320035798,0.19685554,106210.0,106190.0,0.75970621]
[1737320036092,0.19685554,106210.0,106200.0,0.5102381]
[1737320036294,0.0756,106220.0,106210.0,0.047125]
[1737320036495,0.08471134,106220.0,106210.0,0.47261004]
[1737320036688,0.0756,106220.0,106210.0,0.47261004]
[1737320036886,0.0756,106220.0,106210.0,0.11181004]
[1737320037087,0.0756,106220.0,106210.0,0.06068911]
[1737320037288,0.0756,106220.0,106210.0,0.11181004]
[1737320039006,0.0756,106220.0,106210.0,0.06068911]
[1737320039194,0.483521,106220.0,106210.0,0.11181004]
[1737320039394,0.483521,106220.0,106210.0,0.2800267]
[1737320039395,0.122721,106220.0,106210.0,0.2800267]
[1737320039700,0.122721,106220.0,106210.0,0.27412926]
[1737320039902,0.483521,106220.0,106210.0,0.28002294]
[1737320041113,0.483521,106220.0,106210.0,0.11180628]
[1737320041402,0.483521,106220.0,106210.0,0.1059126]
[1737320043004,0.483521,106220.0,106210.0,0.1059079]
[1737320044405,0.122721,106220.0,106210.0,0.4667079]
[1737320044611,0.122721,106220.0,106210.0,0.1059079]
[1737320044901,0.122721,106220.0,106210.0,0.10590762]
[1737320045306,0.0756,106220.0,106210.0,0.10590762]
[1737320045809,0.49251425,106240.0,106220.0,0.047121]
[1737320046001,0.57411425,106240.0,106230.0,0.09823793]
[1737320046201,0.21331425,106240.0,106230.0,0.10118473]
[1737320046906,0.21331425,106240.0,106230.0,0.10118434]
[1737320048004,0.16620025,106240.0,106230.0,0.1058986]
[1737320048506,0.21331225,106240.0,106230.0,0.1058986]
[1737320048902,0.21331225,106240.0,106230.0,0.10589852]
[1737320050001,0.57411225,106240.0,106230.0,0.10589852]
[1737320050207,0.57411225,106240.0,106230.0,0.05006338]
[1737320050404,0.57411225,106240.0,106230.0,0.00766097]
[1737320050907,0.57411225,106240.0,106230.0,0.00766125]
[1737320051706,0.047121,106220.0,106210.0,0.047125]
[1737320051903,0.407921,106220.0,106210.0,0.11180134]
[1737320052312,0.407921,106220.0,106210.0,0.10590768]
[1737320052814,0.407921,106220.0,106210.0,0.1029612]
[1737320053703,0.407921,106220.0,106190.0,0.34256859]
[1737320053704,0.047126,106210.0,106190.0,0.34256859]
[1737320053911,0.0784,106200.0,106190.0,0.30205774]
[1737320054411,0.047122,106220.0,106210.0,0.047125]
[1737320054613,0.0784,106220.0,106210.0,0.05184059]
[1737320054801,0.4395,106230.0,106210.0,0.05773447]
[1737320055007,0.4395,106230.0,106220.0,0.09824193]
[1737320055313,0.0787,106230.0,106220.0,0.1088514]
[1737320055711,0.08770025,106240.0,106220.0,0.52077233]
[1737320055911,0.00930025,106240.0,106230.0,0.58665886]
[1737320056115,0.3608,106250.0,106230.0,0.59741582]
[1737320056302,0.3608,106250.0,106240.0,0.09823293]
[1737320056511,0.3608,106250.0,106240.0,0.1088424]
[1737320056811,0.36990065,106250.0,106240.0,0.1088424]
[1737320057319,0.36990065,106250.0,106240.0,0.10294852]
[1737320057714,0.41700865,106250.0,106240.0,0.10294852]
[1737320058519,0.41700865,106250.0,106240.0,0.05583652]
[1737320058720,0.41700865,106250.0,106240.0,0.05583483]
[1737320060017,0.4359,106250.0,106240.0,0.10294683]
[1737320060213,0.4359,106250.0,106240.0,0.18024683]
[1737320062213,0.3608,106250.0,106240.0,0.18024683]
[1737320062510,0.3608,106260.0,106240.0,0.25564683]
[1737320062714,0.555499,106270.0,106260.0,0.047103]
[1737320062918,0.555499,106270.0,106260.0,0.10293703]
[1737320063710,0.5084,106270.0,106260.0,0.15700355]
[1737320063915,0.4359,106270.0,106260.0,0.15700355]
[1737320064110,0.0751,106270.0,106260.0,0.23340355]
[1737320064308,0.0751,106270.0,106260.0,0.81810355]
[1737320064713,0.0751,106270.0,106260.0,0.23340298]
[1737320064923,0.36992423,106280.0,106260.0,0.59435603]
[1737320065114,0.36992423,106280.0,106270.0,0.09821993]
[1737320065322,0.26816053,106300.0,106290.0,0.04709]
[1737320065617,0.26816053,106300.0,106290.0,0.87874287]
[1737320065813,0.26816053,106300.0,106290.0,0.87858998]
[1737320066009,0.2407224,106300.0,106290.0,0.87858998]
[1737320066823,0.16816053,106310.0,106300.0,0.047086]
[1737320067118,0.16816053,106310.0,106300.0,0.46666209]
[1737320067421,0.16816053,106310.0,106300.0,0.59758302]
[1737320067610,0.16035083,106330.0,106320.0,0.047077]
[1737320067815,0.20742283,106330.0,106320.0,0.10585309]
[1737320068522,0.61934376,106330.0,106320.0,0.00765516]
[1737320068817,0.047086,106300.0,106290.0,0.16842554]
[1737320069023,0.407886,106300.0,106290.0,0.1682733]
[1737320069324,0.485886,106300.0,106290.0,0.1682733]
[1737320069922,0.485886,106300.0,106290.0,0.21939423]
[1737320070223,0.485886,106300.0,106290.0,0.1682733]
[1737320070519,0.485886,106300.0,106290.0,0.21939423]
[1737320070719,0.485886,106300.0,106290.0,0.05112093]
[1737320070915,0.485886,106300.0,106280.0,0.05127317]
[1737320071228,0.04709,106290.0,106280.0,0.05127317]
[1737320071415,0.40789,106290.0,106280.0,0.05112093]
[1737320071810,0.48419,106290.0,106280.0,0.05112093]
[1737320072212,0.48419,106290.0,106270.0,0.05127317]
[1737320072514,0.047094,106280.0,106270.0,0.05127317]
[1737320072718,0.047094,106280.0,106270.0,0.05112093]
[1737320074320,0.407894,106280.0,106260.0,0.40805224]
[1737320074521,0.407894,106280.0,106270.0,0.05112093]
[1737320076114,0.407894,106280.0,106260.0,0.09822093]
[1737320076323,0.407894,106280.0,106270.0,0.05112093]
[1737320076629,0.407894,106280.0,106260.0,0.26649423]
[1737320076928,0.047099,106270.0,106260.0,0.26649423]
[1737320078420,0.047099,106270.0,106260.0,0.62729423]
[1737320078626,0.047099,106270.0,106260.0,0.27120699]
[1737320079826,0.047099,106270.0,106260.0,0.25914544]
[1737320080325,0.407895,106280.0,106260.0,0.30624544]
[1737320080527,0.407895,106280.0,106270.0,0.05112093]
[1737320080726,0.407895,106280.0,106270.0,0.05877913]
[1737320080928,0.047095,106280.0,106270.0,0.05877913]
[1737320081225,0.49340785,106290.0,106270.0,0.10587713]
[1737320081526,0.3608,106280.0,106270.0,0.10602927]
[1737320081924,0.3608,106280.0,106270.0,0.10587713]
[1737320082830,0.3608,106280.0,106270.0,0.27411023]
[1737320083831,0.3608,106280.0,106270.0,0.10602927]
[1737320084227,0.49340785,106290.0,106270.0,0.10602927]
[1737320084532,0.3608,106280.0,106270.0,0.10602927]
[1737320084733,0.49340785,106290.0,106270.0,0.10602924]
[1737320085031,0.4377,106280.0,106270.0,0.2741102]
[1737320085427,0.0769,106280.0,106270.0,0.2741102]
[1737320085829,0.13260785,106290.0,106270.0,0.2741102]
[1737320086023,0.20480785,106290.0,106280.0,0.05112093]
[1737320086230,0.20480785,106290.0,106280.0,0.0587789]
[1737320086428,0.20480785,106290.0,106280.0,0.00765797]
[1737320086628,0.56560785,106290.0,106280.0,0.00765797]
[1737320086831,0.51851685,106290.0,106280.0,0.1058739]
[1737320087136,0.56560685,106290.0,106280.0,0.00765797]
[1737320087826,0.56560685,106290.0,106280.0,0.18201132]
[1737320091029,0.56560685,106290.0,106280.0,0.23742342]
[1737320091440,0.51851685,106290.0,106280.0,0.33563935]
[1737320091837,0.1485,106290.0,106280.0,0.69659169]
[1737320092025,0.00932636,106310.0,106280.0,0.69643935]
[1737320092339,0.1497,106310.0,106300.0,0.09820693]
[1737320092529,0.1497,106310.0,106300.0,0.11175237]
[1737320092833,0.1497,106310.0,106300.0,0.10586305]
[1737320093338,0.1497,106310.0,106300.0,0.00765612]
[1737320093540,0.60870193,106310.0,106300.0,0.00765612]
[1737320093832,0.557581,106310.0,106300.0,0.00765612]
[1737320094027,0.557581,106310.0,106300.0,0.575774]
[1737320094028,0.56653325,106310.0,106300.0,0.575774]
[1737320095141,0.61765418,106310.0,106300.0,0.575774]
[1737320095641,0.61765418,106310.0,106300.0,0.23248394]
[1737320095831,0.61765418,106310.0,106290.0,0.28088371]
[1737320096033,0.407886,106300.0,106290.0,0.28382866]
[1737320096932,0.407886,106300.0,106290.0,0.57153501]
[1737320098437,0.407886,106300.0,106290.0,0.56859006]
[1737320098834,0.45900693,106300.0,106290.0,0.56859006]
[1737320099739,0.45900693,106300.0,106290.0,0.28770635]
[1737320099948,0.04709,106290.0,106280.0,0.66503716]
[1737320100248,0.48709,106290.0,106280.0,0.67092767]
[1737320100548,0.55939,106290.0,106280.0,0.67092767]
[1737320100741,0.55939,106290.0,106280.0,0.62383467]
[1737320101249,0.55939,106290.0,106280.0,0.90371522]
[1737320101749,0.55939,106290.0,106280.0,1.00193115]
[1737320102145,0.55939,106290.0,106280.0,0.95081022]
[1737320103436,0.55939,106290.0,106280.0,0.90371522]
[1737320103643,0.55939,106290.0,106280.0,0.56665477]
[1737320105153,0.55939,106290.0,106280.0,0.6177757]
[1737320105346,0.40789,106290.0,106280.0,0.6648707]
[1737320105556,0.3608,106290.0,106280.0,0.6648707]
[1737320105851,0.52051415,106300.0,106280.0,0.66973773]
[1737320106052,0.40789,106290.0,106280.0,0.61846165]
[1737320106252,0.52051415,106300.0,106280.0,0.66958258]
[1737320106452,0.52051415,106300.0,106290.0,0.05112093]
[1737320106655,0.52051415,106300.0,106290.0,0.01060239]
[1737320107455,0.52960323,106300.0,106290.0,0.01060245]
[1737320107656,0.52960323,106300.0,106290.0,0.0047122]
[1737320107847,0.52960323,106300.0,106290.0,0.00765737]
[1737320108042,0.61424186,106300.0,106290.0,0.00765737]
[1737320109163,0.52960323,106300.0,106290.0,0.00765737]
[1737320109754,0.52960323,106300.0,106290.0,0.17665192]
[1737320110357,0.58072416,106300.0,106290.0,0.17665192]
[1737320110963,0.58072416,106300.0,106290.0,0.17193972]
[1737320111356,0.52960323,106300.0,106290.0,0.17193972]
[1737320112167,0.72162722,106300.0,106290.0,0.17193972]
[1737320112557,0.04709,106290.0,106280.0,0.28088371]
[1737320112753,0.04709,106290.0,106280.0,0.2838293]
[1737320112754,0.68841093,106290.0,106280.0,0.2838293]
[1737320113062,0.68841093,106290.0,106280.0,0.28088371]
[1737320113268,0.63729,106290.0,106280.0,0.28088371]
[1737320113663,0.68841093,106290.0,106280.0,0.28088371]
[1737320113968,0.047095,106280.0,106270.0,0.28088371]
[1737320114158,0.407895,106280.0,106270.0,0.28559677]
[1737320115768,0.49254085,106280.0,106270.0,0.28559677]
[1737320117069,0.49254085,106280.0,106270.0,0.00471308]
[1737320117862,0.49254085,106280.0,106260.0,0.28967882]
[1737320118064,0.407899,106270.0,106260.0,0.29557022]
[1737320118469,0.407899,106270.0,106260.0,0.63263067]
[1737320119062,0.407899,106270.0,106260.0,0.63263086]
[1737320119870,0.407899,106270.0,106260.0,0.57440989]
[1737320120273,0.407899,106270.0,106260.0,0.52328896]
[1737320120768,0.407899,106270.0,106260.0,0.57440989]
[1737320120976,0.407899,106270.0,106260.0,0.10411652]
[1737320121965,0.407899,106270.0,106260.0,0.05701252]
[1737320122267,0.407899,106270.0,106260.0,0.00589159]
[1737320122670,0.49254485,106270.0,106260.0,0.00589159]
[1737320123068,0.49254485,106270.0,106260.0,0.00561131]
[1737320123273,0.49254485,106270.0,106260.0,0.05112093]
[1737320123577,0.44544585,106270.0,106260.0,0.09822493]
[1737320123778,0.08464585,106270.0,106260.0,0.51014586]
[1737320123973,0.47342715,106280.0,106270.0,0.047099]
[1737320124167,0.11262715,106280.0,106270.0,0.61231993]
[1737320124367,0.11262715,106280.0,106270.0,0.61246516]
[1737320124671,0.14090306,106290.0,106280.0,0.047095]
[1737320124868,0.14090306,106290.0,106280.0,0.46196107]
[1737320125375,0.61319023,106310.0,106290.0,0.047089]
[1737320125575,0.56610623,106310.0,106300.0,0.05112093]
[1737320125777,0.57519666,106310.0,106300.0,0.05406607]
[1737320126165,0.57519666,106310.0,106300.0,0.00294514]
[1737320126877,0.4342936,106310.0,106300.0,0.00294514]
[1737320127875,0.4342936,106310.0,106300.0,0.00765688]
[1737320129880,0.4342936,106310.0,106300.0,0.05877781]
[1737320130072,0.0734936,106310.0,106300.0,0.05877781]
[1737320130569,0.48541453,106310.0,106300.0,0.00765688]
[1737320130878,0.4342936,106310.0,106300.0,0.00765688]
[1737320131271,0.41697243,106310.0,106300.0,0.10586381]
[1737320131472,0.05617243,106310.0,106300.0,0.10586381]